fUSD/lending_fUSD_20260506
["ID","MTS","AMOUNT","RATE_DAILY","PERIOD"]
[421708033,1778049254000,-2852.96,0.00042665,120]
[421708030,1778049254000,-2852.96,0.00042665,120]
[421708018,1778049254000,-586.1,0.00042665,120]
[421708008,1778049254000,-2084.1,0.00042665,120]
[421708004,1778049254000,-2084.1,0.00042665,120]
[421708011,1778049254000,-586.1,0.00042665,120]
[421708034,1778049254000,-2852.96,0.00042665,120]
[421707983,1778049254000,-766.01128409,0.00042655,2]
[421707985,1778049254000,-151.0,0.00042663,120]
[421707984,1778049254000,-2000.0,0.00042655,120]
[421707995,1778049254000,-2084.1,0.00042665,120]
[421707986,1778049254000,-151.0,0.00042663,120]
[421707987,1778049254000,-151.0,0.00042663,120]
[421707988,1778049254000,-500.0,0.00042664,7]
[421707989,1778049254000,-500.0,0.00042664,60]
[421707993,1778049254000,-321.97141713,0.00042665,2]
[421707991,1778049254000,-282.426648,0.00042665,81]
[421707994,1778049254000,-210.27362176,0.00042665,120]
[421707992,1778049254000,-11908.0,0.00042665,2]
[421708005,1778049254000,-2084.1,0.00042665,120]
[421707996,1778049254000,-2084.1,0.00042665,120]
[421707997,1778049254000,-2084.1,0.00042665,120]
[421708006,1778049254000,-2084.1,0.00042665,120]
[421707998,1778049254000,-2084.1,0.00042665,120]
[421707999,1778049254000,-2084.1,0.00042665,120]
[421708002,1778049254000,-2084.1,0.00042665,120]
[421708003,1778049254000,-2084.1,0.00042665,120]
[421708001,1778049254000,-2084.1,0.00042665,120]
[421708000,1778049254000,-2084.1,0.00042665,120]
[421708009,1778049254000,-2084.24995061,0.00042665,120]
[421707990,1778049254000,-500.0,0.00042664,120]
[421708032,1778049254000,-2852.96,0.00042665,120]
[421708040,1778049254000,-500.0,0.00042665,120]
[421708057,1778049254000,-1219.69,0.00042665,120]
[421708066,1778049254000,-243.725788,0.00042665,30]
[421708067,1778049254000,-243.725788,0.00042665,30]
[421708065,1778049254000,-156.48951136,0.00042665,120]
[421708077,1778049254000,-1823.76239579,0.00042666,120]
[421708076,1778049254000,-829.0,0.00042666,120]
[421708068,1778049254000,-243.725788,0.00042665,30]
[421708070,1778049254000,-151.0,0.00042665,120]
[421708069,1778049254000,-243.725788,0.00042665,30]
[421708071,1778049254000,-1382.682312,0.00042665,120]
[421708074,1778049254000,-1382.682312,0.00042665,120]
[421708073,1778049254000,-1382.682312,0.00042665,120]
[421708075,1778049254000,-500.0,0.00042665,30]
[421708079,1778049254000,-169.16180632,0.00042666,120]
[421708080,1778049254000,-150.0,0.00042666,4]
[421708078,1778049254000,-211.5,0.00042666,2]
[421708081,1778049254000,-175.4583049,0.00042666,120]
[421708082,1778049254000,-3227.18603934,0.00042666,120]
[421708084,1778049254000,-1656.06,0.00042666,120]
[421708083,1778049254000,-254.81702264,0.00042666,120]
[421708086,1778049254000,-500.0,0.00042666,120]
[421708085,1778049254000,-494.48575912,0.00042666,120]
[421708035,1778049254000,-2852.96,0.00042665,120]
[421708063,1778049254000,-1219.69,0.00042665,120]
[421708062,1778049254000,-1219.69,0.00042665,120]
[421708072,1778049254000,-1382.682312,0.00042665,120]
[421708061,1778049254000,-1219.69,0.00042665,120]
[421708039,1778049254000,-2853.0478,0.00042665,120]
[421708064,1778049254000,-1219.78584259,0.00042665,120]
[421708038,1778049254000,-2852.96,0.00042665,120]
[421708036,1778049254000,-2852.96,0.00042665,120]
[421708037,1778049254000,-2852.96,0.00042665,120]
[421708041,1778049254000,-500.0,0.00042665,120]
[421708046,1778049254000,-500.0,0.00042665,120]
[421708043,1778049254000,-500.0,0.00042665,120]
[421708042,1778049254000,-582.10574026,0.00042665,120]
[421708047,1778049254000,-500.0,0.00042665,120]
[421708045,1778049254000,-500.0,0.00042665,120]
[421708044,1778049254000,-500.0,0.00042665,120]
[421708048,1778049254000,-500.0,0.00042665,120]
[421708050,1778049254000,-1219.69,0.00042665,120]
[421708049,1778049254000,-352.50493473,0.00042665,120]
[421708051,1778049254000,-1219.69,0.00042665,120]
[421708052,1778049254000,-1219.69,0.00042665,120]
[421708054,1778049254000,-1219.69,0.00042665,120]
[421708058,1778049254000,-1219.69,0.00042665,120]
[421708060,1778049254000,-1219.69,0.00042665,120]
[421708055,1778049254000,-1219.69,0.00042665,120]
[421708053,1778049254000,-1219.69,0.00042665,120]
[421708056,1778049254000,-1219.69,0.00042665,120]
[421708059,1778049254000,-1219.69,0.00042665,120]
[421708130,1778049255000,-1920.959522,0.00042683,28]
[421708129,1778049255000,-1920.959522,0.00042683,28]
[421708124,1778049255000,-1920.959522,0.00042683,28]
[421708123,1778049255000,-281.783475,0.00042683,120]
[421708117,1778049255000,-281.783483,0.00042683,120]
[421708119,1778049255000,-281.783483,0.00042683,120]
[421708122,1778049255000,-281.783483,0.00042683,120]
[421708114,1778049255000,-281.783483,0.00042683,120]
[421708121,1778049255000,-281.783483,0.00042683,120]
[421708120,1778049255000,-281.783483,0.00042683,120]
[421708128,1778049255000,-1920.959522,0.00042683,28]
[421708118,1778049255000,-281.783483,0.00042683,120]
[421708139,1778049255000,-910.238616,0.00042683,7]
[421708149,1778049255000,-910.238616,0.00042683,7]
[421708136,1778049255000,-1529.201548,0.00042683,120]
[421708134,1778049255000,-1920.959522,0.00042683,28]
[421708133,1778049255000,-1920.959522,0.00042683,28]
[421708132,1778049255000,-1920.959522,0.00042683,28]
[421708131,1778049255000,-1920.959522,0.00042683,28]
[421708138,1778049255000,-1529.201548,0.00042683,120]
[421708135,1778049255000,-1920.95951806,0.00042683,28]
[421708137,1778049255000,-1529.201548,0.00042683,120]
[421708150,1778049255000,-1529.201548,0.00042683,120]
[421708146,1778049255000,-243.725788,0.00042683,30]
[421708145,1778049255000,-910.238616,0.00042683,7]
[421708116,1778049255000,-281.783483,0.00042683,120]
[421708140,1778049255000,-910.238616,0.00042683,7]
[421708126,1778049255000,-1920.959522,0.00042683,28]
[421708091,1778049255000,-151.0,0.00042666,60]
[421708125,1778049255000,-1920.959522,0.00042683,28]
[421708089,1778049255000,-151.0,0.00042666,60]
[421708088,1778049255000,-1535.0,0.00042666,30]
[421708087,1778049255000,-200.0,0.00042666,7]
[421708090,1778049255000,-151.0,0.00042666,60]
[421708096,1778049255000,-151.0,0.00042666,60]
[421708092,1778049255000,-151.0,0.00042666,60]
[421708093,1778049255000,-151.0,0.00042666,60]
[421708101,1778049255000,-500.0,0.00042666,120]
[421708095,1778049255000,-151.0,0.00042666,60]
[421708097,1778049255000,-151.0,0.00042666,60]
[421708094,1778049255000,-175.04467905,0.00042666,30]
[421708099,1778049255000,-200.0,0.00042666,7]
[421708098,1778049255000,-153.405141,0.00042666,60]
[421708100,1778049255000,-500.0,0.00042666,120]
[421708103,1778049255000,-500.0,0.00042666,120]
[421708112,1778049255000,-281.783483,0.00042683,120]
[421708113,1778049255000,-281.783483,0.00042683,120]
[421708102,1778049255000,-500.0,0.00042666,120]
[421708107,1778049255000,-640.0,0.00042666,120]
[421708108,1778049255000,-5263.0,0.00042666,120]
[421708104,1778049255000,-500.0,0.00042666,120]
[421708105,1778049255000,-500.0,0.00042666,120]
[421708143,1778049255000,-1529.201548,0.00042683,120]
[421708106,1778049255000,-500.0,0.00042666,120]
[421708109,1778049255000,-200.0,0.00042666,7]
[421708111,1778049255000,-938.47,0.0004268,30]
[421708115,1778049255000,-281.783483,0.00042683,120]
[421708127,1778049255000,-1920.959522,0.00042683,28]
[421708144,1778049255000,-1529.201548,0.00042683,120]
[421708110,1778049255000,-300.0,0.0004267,3]
[421708151,1778049255000,-1529.201548,0.00042683,120]
[421708183,1778049255000,-328.357965,0.00042683,120]
[421708182,1778049255000,-1382.682322,0.00042683,120]
[421708188,1778049255000,-607.81341,0.00042683,120]
[421708187,1778049255000,-607.81341,0.00042683,120]
[421708189,1778049255000,-328.357965,0.00042683,120]
[421708180,1778049255000,-1382.682312,0.00042683,120]
[421708186,1778049255000,-328.357965,0.00042683,120]
[421708185,1778049255000,-607.81341,0.00042683,120]
[421708184,1778049255000,-607.81341,0.00042683,120]
[421708178,1778049255000,-1382.682312,0.00042683,120]
[421708191,1778049255000,-607.81341,0.00042683,120]
[421708190,1778049255000,-607.81341,0.00042683,120]
[421708193,1778049255000,-607.81341,0.00042683,120]
[421708192,1778049255000,-328.357966,0.00042683,120]
[421708194,1778049255000,-607.813417,0.00042683,120]
[421708197,1778049255000,-964.36917,0.00042683,120]
[421708195,1778049255000,-318.019443,0.00042683,30]
[421708199,1778049255000,-151.0,0.00042683,120]
[421708198,1778049255000,-318.019443,0.00042683,30]
[421708196,1778049255000,-318.019443,0.00042683,30]
[421708200,1778049255000,-964.36917,0.00042683,120]
[421708202,1778049255000,-964.36917,0.00042683,120]
[421708204,1778049255000,-1419.836767,0.00042683,120]
[421708201,1778049255000,-318.019443,0.00042683,30]
[421708205,1778049255000,-1419.836767,0.00042683,120]
[421708206,1778049255000,-1419.836767,0.00042683,120]
[421708148,1778049255000,-243.725788,0.00042683,30]
[421708177,1778049255000,-1382.682312,0.00042683,120]
[421708181,1778049255000,-1382.682312,0.00042683,120]
[421708203,1778049255000,-964.36918,0.00042683,120]
[421708172,1778049255000,-218.23267,0.00042683,120]
[421708179,1778049255000,-1382.682312,0.00042683,120]
[421708152,1778049255000,-1529.201548,0.00042683,120]
[421708142,1778049255000,-1529.201548,0.00042683,120]
[421708147,1778049255000,-910.238616,0.00042683,7]
[421708154,1778049255000,-243.725788,0.00042683,30]
[421708165,1778049255000,-910.23861,0.00042683,7]
[421708141,1778049255000,-910.238616,0.00042683,7]
[421708153,1778049255000,-910.238616,0.00042683,7]
[421708160,1778049255000,-1529.201539,0.00042683,120]
[421708157,1778049255000,-910.238616,0.00042683,7]
[421708162,1778049255000,-910.238616,0.00042683,7]
[421708156,1778049255000,-243.725788,0.00042683,30]
[421708155,1778049255000,-910.238616,0.00042683,7]
[421708164,1778049255000,-910.238616,0.00042683,7]
[421708159,1778049255000,-1529.201548,0.00042683,120]
[421708174,1778049255000,-151.0,0.00042683,120]
[421708161,1778049255000,-243.725788,0.00042683,30]
[421708176,1778049255000,-1382.682312,0.00042683,120]
[421708173,1778049255000,-151.0,0.00042683,120]
[421708169,1778049255000,-151.0,0.00042683,120]
[421708170,1778049255000,-151.0,0.00042683,120]
[421708171,1778049255000,-151.0,0.00042683,120]
[421708168,1778049255000,-151.0,0.00042683,120]
[421708166,1778049255000,-243.725788,0.00042683,30]
[421708167,1778049255000,-243.725781,0.00042683,30]
[421708163,1778049255000,-243.725788,0.00042683,30]
[421708158,1778049255000,-1529.201548,0.00042683,120]
[421708175,1778049255000,-1382.682312,0.00042683,120]
[421708218,1778049256000,-572274.50568924,0.00042684,30]
[421708216,1778049256000,-158.0,0.00042683,120]
[421708215,1778049256000,-609.0,0.00042683,120]
[421708213,1778049256000,-441.0,0.00042683,120]
[421708214,1778049256000,-153.0,0.00042683,120]
[421708208,1778049256000,-278.48938,0.00042683,120]
[421708212,1778049256000,-348926.14872092,0.00042683,48]
[421708209,1778049256000,-278.48938,0.00042683,120]
[421708210,1778049256000,-278.48938,0.00042683,120]
[421708207,1778049256000,-1419.836768,0.00042683,120]
[421708217,1778049256000,-155.0,0.00042683,120]
[421708211,1778049256000,-278.48939,0.00042683,120]
[421708219,1778049256000,-299.54,0.00038413,2]
[421708224,1778049256000,-1618.50547224,0.0003,3]
[421708223,1778049256000,-159.91306228,0.0002,2]
[421708220,1778049256000,-1204.59658555,0.00018,2]
[421708233,1778049256000,-500.0,0.00035616,7]
[421708232,1778049256000,-500.0,0.00035616,7]
[421708231,1778049256000,-155.0,0.00031342,30]
[421708226,1778049256000,-300.0,0.00038413,2]
[421708227,1778049256000,-395.81661262,0.0004,2]
[421708234,1778049256000,-500.0,0.00035616,7]
[421708230,1778049256000,-1150.55390039,0.00042,30]
[421708228,1778049256000,-1583.60000411,0.0004,2]
[421708222,1778049256000,-159.91306228,0.0002,2]
[421708225,1778049256000,-0.46,0.00038413,2]
[421708221,1778049256000,-159.91306228,0.0002,2]
[421708229,1778049256000,-588.95083469,0.0004,120]
[421708241,1778049257000,-500.0,0.00012699,2]
[421708248,1778049257000,-500.0,0.00035616,7]
[421708245,1778049257000,-640.78975231,0.00012699,2]
[421708242,1778049257000,-500.0,0.00012699,2]
[421708247,1778049257000,-500.0,0.00035616,7]
[421708243,1778049257000,-500.0,0.00012699,2]
[421708246,1778049257000,-158.0,0.00032342,30]
[421708251,1778049257000,-500.0,0.00035616,7]
[421708238,1778049257000,-500.0,0.00035616,7]
[421708253,1778049257000,-500.0,0.00035616,7]
[421708252,1778049257000,-500.0,0.00035616,7]
[421708240,1778049257000,-70673.35169417,0.00042684,30]
[421708239,1778049257000,-122.14765282,0.00042,30]
[421708237,1778049257000,-500.0,0.00035616,7]
[421708236,1778049257000,-380.65946396,0.00035616,7]
[421708244,1778049257000,-500.0,0.00012699,2]
[421708235,1778049257000,-119.34053604,0.00035616,7]
[421708250,1778049257000,-500.0,0.00035616,7]
[421708249,1778049257000,-500.0,0.00035616,7]
[421708272,1778049257000,-2983.4383552,0.00038992,2]
[421708255,1778049257000,-500.0,0.00035616,7]
[421708269,1778049257000,-98.78095269,0.00038413,2]
[421708270,1778049257000,-483.27319916,0.00038413,2]
[421708271,1778049257000,-2256.36250661,0.00038992,2]
[421708267,1778049257000,-109.84947185,0.00035616,7]
[421708268,1778049257000,-201.21904731,0.00038413,2]
[421708266,1778049257000,-165.20807457,0.00032,120]
[421708257,1778049257000,-406.64205581,0.00035616,7]
[421708261,1778049257000,-500.0,0.00035616,7]
[421708273,1778049257000,-10000.01,0.000124,2]
[421708259,1778049257000,-500.0,0.00035616,7]
[421708260,1778049257000,-500.0,0.00035616,7]
[421708263,1778049257000,-500.0,0.00035616,7]
[421708265,1778049257000,-390.15052815,0.00035616,7]
[421708264,1778049257000,-244.55269391,0.00035616,7]
[421708256,1778049257000,-93.35794419,0.00035616,7]
[421708258,1778049257000,-500.0,0.00035616,7]
[421708254,1778049257000,-500.0,0.00035616,7]
[421708262,1778049257000,-500.0,0.00035616,7]
[421708276,1778049258000,-8765.79635499,0.000107,2]
[421708275,1778049258000,-1234.21364501,0.00010204,2]
[421708274,1778049258000,18093.94524397,0.000107,2]
[421708277,1778049259000,-300.0,0.00010699,2]
[421708278,1778049259000,-9700.01,0.000107,2]
[421708279,1778049260000,-10000.01,0.000107,2]
[421708280,1778049261000,-10000.01,0.000107,2]
[421708282,1778049420000,-10000.01,0.000107,2]
[421708281,1778049420000,-10000.01,0.000107,2]
[421708284,1778049422000,-7810.50413002,0.000107,2]
[421708283,1778049422000,-2189.50586998,0.00010452,2]
[421708292,1778049581000,-500.0,0.00011999,2]
[421708285,1778049581000,-10000.01,0.000107,2]
[421708286,1778049581000,-480.66232795,0.000107,2]
[421708287,1778049581000,-5000.0,0.00011224,2]
[421708291,1778049581000,-500.0,0.00011999,2]
[421708289,1778049581000,-500.0,0.00011999,2]
[421708290,1778049581000,-500.0,0.00011999,2]
[421708293,1778049581000,-500.0,0.00011999,2]
[421708294,1778049581000,-419.34767205,0.00011999,2]
[421708295,1778049581000,-150.0,0.00011559,2]
[421708296,1778049581000,-80.65232795,0.00011999,2]
[421708288,1778049581000,-1600.0,0.0001166,2]
[421708298,1778049582000,-255.0,0.00011737,2]
[421708297,1778049582000,-150.0,0.00010699,2]
[421708300,1778049585000,-1852.42,0.00011498,2]
[421708299,1778049585000,-250.0,0.00011224,2]
[421708301,1778049586000,300.0,0.00010699,2]
[421708304,1778049586000,-1680.0,0.00011769,2]
[421708303,1778049586000,-420.0,0.00011761,2]
[421708302,1778049586000,1200.0,0.00010699,2]
[421708305,1778049591000,-2000.0,0.00011743,2]
[421708310,1778049852000,-1187.29309153,0.0001216,2]
[421708309,1778049852000,-500.0,0.00011605,2]
[421708311,1778049852000,-177.92,0.00012329,2]
[421708312,1778049852000,-3181.35556849,0.00012399,2]
[421708315,1778049852000,-4580.19268305,0.00012475,2]
[421708314,1778049852000,-199.87925393,0.000124,2]
[421708316,1778049852000,-3181.35556843,0.00012566,2]
[421708317,1778049852000,-607616.26817768,0.00012578,2]
[421708313,1778049852000,-1375.73565689,0.000124,2]
[421708321,1778049854000,-296.58,0.00011555,2]
[421708320,1778049854000,-203.42,0.00011384,2]
[421708319,1778049854000,-500.0,0.00011384,2]
[421708318,1778049854000,203.42,5.692e-05,2]
[421708322,1778049855000,-500.0,0.00011555,2]
[421708323,1778049856000,-500.0,0.00011555,2]
[421708326,1778049857000,-500.0,0.00011555,2]
[421708325,1778049857000,-333.45524975,0.00011555,2]
[421708324,1778049857000,-166.54475025,0.0001,2]
[421708327,1778049858000,-500.0,0.00011555,2]
[421708330,1778049858000,-120.11524975,0.00011704,2]
[421708329,1778049858000,-157.72,0.00011657,2]
[421708328,1778049858000,-222.16475025,0.00011555,2]
[421708333,1778049859000,-166.11,0.000116,2]
[421708331,1778049859000,-79.88475025,0.00011704,2]
[421708332,1778049859000,-166.66,0.00011813,2]
[421708338,1778049860000,-500.0,0.00012577,2]
[421708337,1778049860000,-166.66,0.00012203,2]
[421708336,1778049860000,-600.10940529,0.0001206,2]
[421708334,1778049860000,-300.0,0.00012054,2]
[421708335,1778049860000,-5012.97,0.00012055,2]
[421708339,1778049861000,-207.8284994,0.00012577,2]
[421708341,1778049861000,-2003.059,0.00012577,2]
[421708340,1778049861000,-150.0,0.00012577,2]
[421708342,1778049861000,-200.319,0.00012577,2]
[421708344,1778049861000,-892383.73182232,0.00012578,2]
[421708345,1778049861000,-166.66,0.00012593,2]
[421708343,1778049861000,-150.0,0.00012577,2]
[421708346,1778049861000,-3004.73318439,0.00012676,2]
[421708348,1778049861000,-6793.3795,0.00012856,2]
[421708347,1778049861000,-157.72,0.00012822,2]
[421708349,1778049861000,-166.66,0.00012983,2]
[421708350,1778049861000,1000.0,0.00011452,2]
[421708351,1778049861000,300.0,0.00012054,2]
[421708352,1778049862000,500.0,0.00012577,2]
[421708353,1778049862000,500.0,0.00012577,2]
[421708354,1778049862000,500.0,0.00012577,2]
[421708356,1778049862000,500.0,0.00012577,2]
[421708357,1778049862000,500.0,0.00012577,2]
[421708358,1778049862000,500.0,0.00012577,2]
[421708359,1778049862000,500.0,0.00012577,2]
[421708361,1778049862000,500.0,0.00012577,2]
[421708355,1778049862000,500.0,0.00012577,2]
[421708360,1778049862000,500.0,0.00012577,2]
[421708363,1778049862000,416.883009,0.00012577,2]
[421708364,1778049862000,500.0,0.00012577,2]
[421708365,1778049862000,500.0,0.00012577,2]
[421708367,1778049862000,500.0,0.00012577,2]
[421708369,1778049862000,500.0,0.00012577,2]
[421708366,1778049862000,500.0,0.00012577,2]
[421708368,1778049862000,500.0,0.00012577,2]
[421708362,1778049862000,500.0,0.00012577,2]
[421708370,1778049863000,469.0772,0.00012856,2]
[421708371,1778049863000,206.42212068,0.00012577,2]
[421708373,1778049863000,-500.0,0.00012577,2]
[421708374,1778049863000,-500.0,0.00012577,2]
[421708372,1778049863000,-500.0,0.00012577,2]
[421708379,1778049864000,-250.0,0.00012577,2]
[421708376,1778049864000,250.0,7.846e-05,2]
[421708375,1778049864000,250.0,6.261e-05,2]
[421708378,1778049864000,-250.0,0.00012577,2]
[421708380,1778049864000,-250.0,0.00012577,2]
[421708377,1778049864000,-250.0,9.982e-05,2]
[421708381,1778049864000,-126.71077708,0.00012577,2]
[421708383,1778049864000,-91.86978955,0.00012577,2]
[421708384,1778049864000,-462.23760216,0.00012577,2]
[421708385,1778049864000,-37.76239784,0.00012577,2]
[421708386,1778049864000,-500.0,0.00012163,2]
[421708382,1778049864000,-281.41943337,0.00012577,2]
[421708387,1778050025000,-532.98,0.00011438,2]
[421708389,1778050089000,-32.98,0.00012163,2]
[421708388,1778050089000,-500.0,0.00011505,2]
[421708390,1778050090000,-532.98,0.00012163,2]
[421708391,1778050154000,-532.98,0.00012163,2]
[421708403,1778050155000,-500.0,0.00012577,2]
[421708401,1778050155000,-1545.87853812,0.00012577,2]
[421708398,1778050155000,-1545.87853812,0.00012577,2]
[421708400,1778050155000,-1545.87853812,0.00012577,2]
[421708399,1778050155000,-353.7293498,0.00012577,2]
[421708402,1778050155000,-500.0,0.00012577,2]
[421708396,1778050155000,-385.61465375,0.00012577,2]
[421708395,1778050155000,-150.0,0.00012576,2]
[421708394,1778050155000,-1200.0,0.00012576,2]
[421708392,1778050155000,-847.010878,0.00012163,2]
[421708397,1778050155000,-1545.87853812,0.00012577,2]
[421708405,1778050155000,-465.90794738,0.00012577,2]
[421708393,1778050155000,-227.0,0.00012576,2]
[421708407,1778050155000,-500.0,0.00012577,2]
[421708417,1778050155000,-532.98,0.00012846,2]
[421708415,1778050155000,-169.0,0.00012846,2]
[421708414,1778050155000,-169.0,0.00012846,2]
[421708413,1778050155000,-169.0,0.00012846,2]
[421708411,1778050155000,-250.0,0.00012582,2]
[421708416,1778050155000,-985453.7032681,0.00012846,2]
[421708410,1778050155000,-500.0,0.00012577,2]
[421708409,1778050155000,-500.0,0.00012577,2]
[421708408,1778050155000,-500.0,0.00012577,2]
[421708406,1778050155000,-345.82603638,0.00012577,2]
[421708412,1778050155000,-169.0,0.00012846,2]
[421708404,1778050155000,-461.69371411,0.00012577,2]
[421708418,1778050156000,-532.98,0.00012846,2]
[421708421,1778050157000,-532.98,0.00012846,2]
[421708420,1778050157000,-380.55376571,0.00012846,2]
[421708419,1778050157000,-152.42623429,0.00012477,2]
[421708423,1778050158000,-532.98,0.00012846,2]
[421708422,1778050158000,-532.98,0.00012846,2]
[421708424,1778050159000,-532.98,0.00012846,2]
[421708425,1778050159000,-532.98,0.0001258,2]
[421708426,1778050160000,-532.98,0.0001258,2]
[421708428,1778050160000,1904.37240159,0.00030137,120]
[421708427,1778050160000,-532.98,0.0001258,2]
[421708430,1778050161000,-500.0,0.0001258,2]
[421708429,1778050161000,-532.98,0.0001258,2]
[421708433,1778050162000,-129.22,0.0001258,2]
[421708434,1778050162000,-220.78,0.00012846,2]
[421708432,1778050162000,-150.0,0.00012425,2]
[421708431,1778050162000,-500.0,0.0001258,2]
[421708438,1778050163000,-1379.990878,0.00012318,2]
[421708436,1778050163000,-500.0,0.00012318,2]
[421708437,1778050163000,-500.0,0.00012318,2]
[421708435,1778050163000,-500.0,0.00012318,2]
[421708616,1778050324000,-1379.990878,0.00012318,2]
[421708618,1778050324000,-1379.990878,0.00012318,2]
[421708617,1778050324000,-1379.990878,0.00012318,2]
[421708621,1778050325000,-1379.990878,0.00012318,2]
[421708620,1778050325000,-1379.990878,0.00012318,2]
[421708619,1778050325000,500.0,0.0002819,120]
[421708622,1778050326000,-10000.01,0.00012318,2]
[421708630,1778050381000,-10000.01,0.00012318,2]
[421708629,1778050381000,-10000.01,0.00012318,2]
[421708632,1778050382000,-10000.01,0.00012318,2]
[421708631,1778050382000,-10000.01,0.00012318,2]
[421708636,1778050383000,-2545.08445478,0.00012768,2]
[421708633,1778050383000,-10000.01,0.00012318,2]
[421708637,1778050383000,-3550.32462862,0.00012768,2]
[421708634,1778050383000,-1904.6009166,0.00012318,2]
[421708635,1778050383000,-2000.0,0.00012728,2]
[421708684,1778050384000,-500.0,0.00012845,2]
[421708661,1778050384000,-500.0,0.00012845,2]
[421708662,1778050384000,-500.0,0.00012845,2]
[421708664,1778050384000,-500.0,0.00012845,2]
[421708666,1778050384000,-500.0,0.00012845,2]
[421708669,1778050384000,-500.0,0.00012845,2]
[421708665,1778050384000,-500.0,0.00012845,2]
[421708667,1778050384000,-500.0,0.00012845,2]
[421708668,1778050384000,-500.0,0.00012845,2]
[421708670,1778050384000,-500.0,0.00012845,2]
[421708681,1778050384000,-500.0,0.00012845,2]
[421708682,1778050384000,-500.0,0.00012845,2]
[421708675,1778050384000,-500.0,0.00012845,2]
[421708673,1778050384000,-500.0,0.00012845,2]
[421708671,1778050384000,-500.0,0.00012845,2]
[421708674,1778050384000,-500.0,0.00012845,2]
[421708672,1778050384000,-500.0,0.00012845,2]
[421708676,1778050384000,-500.0,0.00012845,2]
[421708678,1778050384000,-500.0,0.00012845,2]
[421708680,1778050384000,-500.0,0.00012845,2]
[421708679,1778050384000,-500.0,0.00012845,2]
[421708663,1778050384000,-500.0,0.00012845,2]
[421708677,1778050384000,-500.0,0.00012845,2]
[421708659,1778050384000,-500.0,0.00012845,2]
[421708654,1778050384000,-500.0,0.00012845,2]
[421708687,1778050384000,-500.0,0.00012845,2]
[421708639,1778050384000,-330.153244,0.00012768,2]
[421708638,1778050384000,-1711.23017621,0.00012768,2]
[421708645,1778050384000,-500.0,0.00012845,2]
[421708640,1778050384000,-500.0,0.00012845,2]
[421708646,1778050384000,-239.12920335,0.00012845,2]
[421708642,1778050384000,-449.68131817,0.00012845,2]
[421708641,1778050384000,-500.0,0.00012845,2]
[421708644,1778050384000,-642.47355294,0.00012845,2]
[421708643,1778050384000,-500.0,0.00012845,2]
[421708648,1778050384000,-500.0,0.00012845,2]
[421708647,1778050384000,-298.27770208,0.00012845,2]
[421708650,1778050384000,-500.0,0.00012845,2]
[421708658,1778050384000,-350.08031868,0.00012845,2]
[421708649,1778050384000,-236.27868654,0.00012845,2]
[421708653,1778050384000,-500.0,0.00012845,2]
[421708652,1778050384000,-500.0,0.00012845,2]
[421708656,1778050384000,-500.0,0.00012845,2]
[421708655,1778050384000,-500.0,0.00012845,2]
[421708657,1778050384000,-17.5914524,0.00012845,2]
[421708651,1778050384000,-360.12287777,0.00012845,2]
[421708660,1778050384000,-500.0,0.00012845,2]
[421708683,1778050384000,-500.0,0.00012845,2]
[421708724,1778050384000,-500.0,0.00012845,2]
[421708685,1778050384000,-500.0,0.00012845,2]
[421708709,1778050384000,-500.0,0.00012845,2]